[Event "*** Titled Tuesday 3|2 Blitz"]
[Site "Chess.com"]
[Date "2015.04.07"]
[Round "1"]
[White "jup1978"]
[Black "Dlugy"]
[Result "0-1"]
[WhiteElo "2147"]
[BlackElo "2499"]
[TimeControl "180+2"]
[EndTime "11:02:11 PDT"]
[Termination "Dlugy won by resignation"]

1. e4 {[%clk 0:02:58]} 1... d5 {[%clk 0:03:00.9]} 2. exd5 {[%clk 0:02:58.6]}
2... Qxd5 {[%clk 0:03:02.8]} 3. Nc3 {[%clk 0:03:00]} 3... Qd6 {[%clk 0:03:04.4]}
4. d4 {[%clk 0:03:00.2]} 4... c6 {[%clk 0:03:05.9]} 5. Bc4 {[%clk 0:03:01.7]}
5... Nf6 {[%clk 0:03:06]} 6. Nge2 {[%clk 0:03:03.2]} 6... Bf5 {[%clk 0:03:06.1]}
7. Bf4 {[%clk 0:03:04.3]} 7... Qb4 {[%clk 0:03:07]} 8. Bb3 {[%clk 0:03:03.7]}
8... e6 {[%clk 0:03:08.3]} 9. Qd2 {[%clk 0:03:04.5]} 9... Nbd7 {[%clk 0:03:07]}
10. a3 {[%clk 0:03:05.8]} 10... Qa5 {[%clk 0:03:07.8]} 11. O-O-O {[%clk
0:03:03.4]} 11... Bxa3 {[%clk 0:03:05.1]} 12. bxa3 {[%clk 0:03:04]} 12... Qxa3+
{[%clk 0:03:06.1]} 13. Kb1 {[%clk 0:03:02.7]} 13... Qxb3+ {[%clk 0:03:07.2]} 14.
Kc1 {[%clk 0:03:04]} 14... Qa3+ {[%clk 0:03:07.9]} 15. Kb1 {[%clk 0:03:04.9]}
15... Nb6 {[%clk 0:03:08.5]} 16. Qc1 {[%clk 0:03:02.2]} 16... Nc4 {[%clk
0:03:04.9]} 17. Qxa3 {[%clk 0:02:34.6]} 17... Nxa3+ {[%clk 0:03:04.9]} 18. Kb2
{[%clk 0:02:36.5]} 18... Nxc2 {[%clk 0:03:05.4]} 19. f3 {[%clk 0:02:33.2]} 19...
Nb4 {[%clk 0:03:04.5]} 20. Bd6 {[%clk 0:02:28]} 20... Nd3+ {[%clk 0:03:05]} 21.
Kb3 {[%clk 0:02:27.7]} 21... Nf2 {[%clk 0:03:06.1]} 0-1

[Event "*** Titled Tuesday 3|2 Blitz"]
[Site "Chess.com"]
[Date "2015.04.07"]
[Round "1"]
[White "zmaj23"]
[Black "kharposh"]
[Result "1-0"]
[WhiteElo "2383"]
[BlackElo "2043"]
[TimeControl "180+2"]
[EndTime "11:06:32 PDT"]
[Termination "zmaj23 won by resignation"]

1. e4 {[%clk 0:02:58.6]} 1... c5 {[%clk 0:03:01.5]} 2. Nf3 {[%clk 0:02:58.4]}
2... d6 {[%clk 0:03:02.9]} 3. d4 {[%clk 0:03:00.3]} 3... cxd4 {[%clk 0:03:02.9]}
4. Nxd4 {[%clk 0:03:01.3]} 4... Nf6 {[%clk 0:03:04.4]} 5. Nc3 {[%clk 0:03:00.7]}
5... g6 {[%clk 0:03:05.8]} 6. Be3 {[%clk 0:03:00.7]} 6... Bg7 {[%clk 0:03:07.4]}
7. f3 {[%clk 0:03:00.8]} 7... O-O {[%clk 0:03:09]} 8. Qd2 {[%clk 0:03:00.9]}
8... Nc6 {[%clk 0:03:10.7]} 9. O-O-O {[%clk 0:03:00.9]} 9... Bd7 {[%clk
0:03:12.3]} 10. g4 {[%clk 0:02:59.4]} 10... Rc8 {[%clk 0:03:11.1]} 11. h4 {[%clk
0:02:57.2]} 11... Ne5 {[%clk 0:03:11.1]} 12. h5 {[%clk 0:02:55.2]} 12... Nc4
{[%clk 0:03:10.4]} 13. Bxc4 {[%clk 0:02:52]} 13... Rxc4 {[%clk 0:03:12.3]} 14.
Kb1 {[%clk 0:02:47]} 14... b5 {[%clk 0:03:11.6]} 15. Bh6 {[%clk 0:02:45.1]}
15... b4 {[%clk 0:03:08.7]} 16. Nd5 {[%clk 0:02:42.6]} 16... Rxd4 {[%clk
0:03:04.6]} 17. Qxd4 {[%clk 0:02:41.6]} 17... Bxh6 {[%clk 0:03:04.1]} 18. hxg6
{[%clk 0:02:39.3]} 18... Bg7 {[%clk 0:03:00.6]} 19. gxh7+ {[%clk 0:02:39.8]}
19... Kh8 {[%clk 0:03:00.3]} 20. Qxa7 {[%clk 0:02:34.2]} 20... Nxd5 {[%clk
0:03:00.1]} 21. Rxd5 {[%clk 0:02:35.9]} 21... Be6 {[%clk 0:02:59]} 22. Rb5
{[%clk 0:02:33.3]} 22... Qa8 {[%clk 0:02:47.6]} 23. Qxa8 {[%clk 0:02:24.8]}
23... Rxa8 {[%clk 0:02:49.5]} 24. Rxb4 {[%clk 0:02:26.7]} 24... Bxa2+ {[%clk
0:02:47.3]} 25. Kc1 {[%clk 0:02:28]} 25... Be6 {[%clk 0:02:45.8]} 26. Kd2 {[%clk
0:02:28.4]} 26... Be5 {[%clk 0:02:42.8]} 27. Ke3 {[%clk 0:02:26.4]} 27... Bf6
{[%clk 0:02:34.2]} 28. Rb7 {[%clk 0:02:23.6]} 28... Rc8 {[%clk 0:02:21.9]} 29.
c3 {[%clk 0:02:21.9]} 29... Kg7 {[%clk 0:02:19.2]} 30. f4 {[%clk 0:02:18.4]}
30... Bxg4 {[%clk 0:02:18.1]} 31. Rg1 {[%clk 0:02:18.5]} 31... Kxh7 {[%clk
0:02:16.4]} 32. Rxg4 {[%clk 0:02:19.5]} 32... Ra8 {[%clk 0:02:15.5]} 33. Rb5
{[%clk 0:02:15.5]} 33... Kh6 {[%clk 0:02:13.8]} 34. e5 {[%clk 0:02:13.4]} 34...
dxe5 {[%clk 0:02:10.9]} 35. fxe5 {[%clk 0:02:15.3]} 35... Bg5+ {[%clk
0:02:11.6]} 36. Ke4 {[%clk 0:02:16.5]} 36... Ra1 {[%clk 0:02:09.5]} 37. c4
{[%clk 0:02:10.2]} 37... e6 {[%clk 0:02:06.8]} 38. c5 {[%clk 0:02:06.8]} 38...
Rc1 {[%clk 0:02:07.2]} 39. b4 {[%clk 0:02:01.9]} 39... Rc4+ {[%clk 0:02:04.3]}
40. Kf3 {[%clk 0:02:03.1]} 40... Rc3+ {[%clk 0:02:06.2]} 41. Ke2 {[%clk
0:02:01.9]} 41... Re3+ {[%clk 0:02:07.1]} 42. Kd1 {[%clk 0:02:00.5]} 42... Rxe5
{[%clk 0:02:08.5]} 43. Rb8 {[%clk 0:01:55.5]} 43... f5 {[%clk 0:02:08.3]} 44.
Rg2 {[%clk 0:01:53.5]} 44... Rd5+ {[%clk 0:02:08.8]} 45. Kc2 {[%clk 0:01:54]}
45... Bf6 {[%clk 0:02:05.8]} 46. c6 {[%clk 0:01:50.2]} 46... Be5 {[%clk
0:02:05.8]} 47. c7 {[%clk 0:01:46.3]} 1-0

[Event "*** Titled Tuesday 3|2 Blitz"]
[Site "Chess.com"]
[Date "2015.04.07"]
[Round "1"]
[White "AndrewMcStone"]
[Black "grandmastergauri"]
[Result "0-1"]
[WhiteElo "1937"]
[BlackElo "2287"]
[TimeControl "180+2"]
[EndTime "11:07:13 PDT"]
[Termination "grandmastergauri won by resignation"]

1. d4 {[%clk 0:02:56.6]} 1... Nf6 {[%clk 0:02:42.5]} 2. c4 {[%clk 0:02:56.8]}
2... e6 {[%clk 0:02:44.4]} 3. Nc3 {[%clk 0:02:57.8]} 3... Bb4 {[%clk 0:02:43.4]}
4. f3 {[%clk 0:02:59.2]} 4... O-O {[%clk 0:02:43]} 5. a3 {[%clk 0:02:57.9]} 5...
Bxc3+ {[%clk 0:02:44.1]} 6. bxc3 {[%clk 0:02:59.8]} 6... Ne8 {[%clk 0:02:45.8]}
7. e4 {[%clk 0:03:00.7]} 7... b6 {[%clk 0:02:46.2]} 8. Bd3 {[%clk 0:03:01.1]}
8... Ba6 {[%clk 0:02:38.3]} 9. Ne2 {[%clk 0:03:00.9]} 9... Nc6 {[%clk
0:02:38.1]} 10. Ng3 {[%clk 0:02:54.6]} 10... Na5 {[%clk 0:02:36.6]} 11. Qe2
{[%clk 0:02:38.7]} 11... Nd6 {[%clk 0:02:33.8]} 12. c5 {[%clk 0:02:28.9]} 12...
Bxd3 {[%clk 0:02:34.3]} 13. Qxd3 {[%clk 0:02:30.8]} 13... bxc5 {[%clk 0:02:36]}
14. dxc5 {[%clk 0:02:22.5]} 14... Ndc4 {[%clk 0:02:37.1]} 15. Rb1 {[%clk
0:02:01.2]} 15... Qe7 {[%clk 0:02:36]} 16. Be3 {[%clk 0:01:48.2]} 16... Nxe3
{[%clk 0:02:15.4]} 17. Qxe3 {[%clk 0:01:50.1]} 17... Nc4 {[%clk 0:02:16.7]} 18.
Qd4 {[%clk 0:01:44.8]} 18... Nxa3 {[%clk 0:02:17.8]} 19. Rc1 {[%clk 0:01:25.3]}
19... Nb5 {[%clk 0:02:14]} 20. Qc4 {[%clk 0:01:18.7]} 20... Rfb8 {[%clk
0:02:12.3]} 21. O-O {[%clk 0:01:11.9]} 21... a5 {[%clk 0:02:13.3]} 22. Rb1
{[%clk 0:01:08.9]} 22... Na3 {[%clk 0:02:04.7]} 23. Rxb8+ {[%clk 0:01:07]} 23...
Rxb8 {[%clk 0:02:06.6]} 24. Qd4 {[%clk 0:01:00.7]} 24... Nb5 {[%clk 0:01:33.8]}
25. Qc4 {[%clk 0:00:51.6]} 25... Na7 {[%clk 0:01:34.2]} 26. Rd1 {[%clk
0:00:27.5]} 26... h6 {[%clk 0:01:29.8]} 27. e5 {[%clk 0:00:14.7]} 27... Rb5
{[%clk 0:01:28.8]} 28. Ne4 {[%clk 0:00:15.5]} 28... Rb2 {[%clk 0:01:17.7]} 29.
h3 {[%clk 0:00:12.2]} 29... Nc6 {[%clk 0:01:18.8]} 30. f4 {[%clk 0:00:10.4]}
30... Qh4 {[%clk 0:01:19.8]} 31. Rxd7 {[%clk 0:00:07.1]} 31... Rb1+ {[%clk
0:01:15.7]} 32. Kh2 {[%clk 0:00:08]} 32... Qxf4+ {[%clk 0:01:17.1]} 33. g3
{[%clk 0:00:08.3]} 33... Rb2+ {[%clk 0:01:18.2]} 0-1

[Event "*** Titled Tuesday 3|2 Blitz"]
[Site "Chess.com"]
[Date "2015.04.07"]
[Round "1"]
[White "jbj"]
[Black "ilmago"]
[Result "1-0"]
[WhiteElo "2274"]
[BlackElo "1888"]
[TimeControl "180+2"]
[EndTime "11:07:29 PDT"]
[Termination "jbj won by resignation"]

1. e4 {[%clk 0:02:58.3]} 1... c5 {[%clk 0:02:59.6]} 2. d4 {[%clk 0:02:57.5]}
2... cxd4 {[%clk 0:02:59.7]} 3. c3 {[%clk 0:02:58.2]} 3... dxc3 {[%clk
0:03:00.6]} 4. Nxc3 {[%clk 0:02:58.9]} 4... a6 {[%clk 0:03:01.7]} 5. Nf3 {[%clk
0:02:56.6]} 5... e6 {[%clk 0:03:02.4]} 6. Bc4 {[%clk 0:02:52.3]} 6... b5 {[%clk
0:03:02.8]} 7. Bb3 {[%clk 0:02:52.7]} 7... d6 {[%clk 0:03:04.3]} 8. O-O {[%clk
0:02:52.9]} 8... Nd7 {[%clk 0:03:01.1]} 9. Be3 {[%clk 0:02:02.1]} 9... Bb7
{[%clk 0:03:01.1]} 10. Ng5 {[%clk 0:01:53.9]} 10... Ngf6 {[%clk 0:02:45.8]} 11.
f4 {[%clk 0:01:49.6]} 11... h6 {[%clk 0:02:43.4]} 12. Nxe6 {[%clk 0:01:40.4]}
12... fxe6 {[%clk 0:02:40.3]} 13. Bxe6 {[%clk 0:01:42.3]} 13... Nc5 {[%clk
0:02:40.6]} 14. Bxc5 {[%clk 0:01:36.6]} 14... dxc5 {[%clk 0:02:41]} 15. Nd5
{[%clk 0:01:32]} 15... Bxd5 {[%clk 0:02:36.5]} 16. exd5 {[%clk 0:01:31.1]} 16...
Qb6 {[%clk 0:02:23.6]} 17. Re1 {[%clk 0:01:26.7]} 17... c4+ {[%clk 0:02:24]} 18.
Kh1 {[%clk 0:01:26.2]} 18... Be7 {[%clk 0:02:23.5]} 19. Qc2 {[%clk 0:01:14.7]}
19... Ra7 {[%clk 0:01:39.2]} 20. Qg6+ {[%clk 0:01:10]} 20... Kd8 {[%clk
0:01:40.2]} 21. Qxg7 {[%clk 0:01:03.1]} 21... Rf8 {[%clk 0:01:39]} 22. Rad1
{[%clk 0:00:47.3]} 22... Bd6 {[%clk 0:01:33.6]} 23. Qxh6 {[%clk 0:00:46.4]}
23... Rh7 {[%clk 0:01:32.9]} 24. Qg5 {[%clk 0:00:46]} 24... Rxh2+ {[%clk
0:01:17.5]} 25. Kxh2 {[%clk 0:00:45.8]} 25... Rh8+ {[%clk 0:01:17.8]} 26. Bh3
{[%clk 0:00:41.1]} 26... Rf8 {[%clk 0:00:34.9]} 27. Re6 {[%clk 0:00:37.8]} 27...
Qc7 {[%clk 0:00:27.5]} 28. Rxf6 {[%clk 0:00:37.3]} 28... Rxf6 {[%clk 0:00:22.4]}
29. Qxf6+ {[%clk 0:00:38.1]} 29... Be7 {[%clk 0:00:23.9]} 30. Qh8+ {[%clk
0:00:38]} 1-0

[Event "*** Titled Tuesday 3|2 Blitz"]
[Site "Chess.com"]
[Date "2015.04.07"]
[Round "1"]
[White "MITerryble"]
[Black "chessloveyou"]
[Result "1-0"]
[WhiteElo "2481"]
[BlackElo "2110"]
[TimeControl "180+2"]
[EndTime "11:07:31 PDT"]
[Termination "MITerryble won by resignation"]

1. d4 {[%clk 0:02:56.2]} 1... Nf6 {[%clk 0:02:58.8]} 2. Nf3 {[%clk 0:02:56.1]}
2... g6 {[%clk 0:02:58.9]} 3. Bg5 {[%clk 0:02:56.5]} 3... Bg7 {[%clk 0:02:57.7]}
4. Nbd2 {[%clk 0:02:57.4]} 4... d5 {[%clk 0:02:58]} 5. c3 {[%clk 0:02:58]} 5...
O-O {[%clk 0:02:57.1]} 6. e3 {[%clk 0:02:59]} 6... Nbd7 {[%clk 0:02:54.3]} 7.
Be2 {[%clk 0:02:58.9]} 7... c5 {[%clk 0:02:54.5]} 8. O-O {[%clk 0:02:59.5]} 8...
Qb6 {[%clk 0:02:53.9]} 9. Qb3 {[%clk 0:02:59.6]} 9... c4 {[%clk 0:02:44.7]} 10.
Qc2 {[%clk 0:02:58.5]} 10... Re8 {[%clk 0:02:42.9]} 11. b3 {[%clk 0:02:21.1]}
11... cxb3 {[%clk 0:02:32.1]} 12. axb3 {[%clk 0:02:22.1]} 12... Nf8 {[%clk
0:02:29.2]} 13. c4 {[%clk 0:02:18]} 13... Bf5 {[%clk 0:02:27.6]} 14. Qa2 {[%clk
0:02:18.4]} 14... Ne4 {[%clk 0:02:16]} 15. Nxe4 {[%clk 0:02:16.6]} 15... dxe4
{[%clk 0:02:10.3]} 16. Nd2 {[%clk 0:02:17.3]} 16... h6 {[%clk 0:02:04]} 17. Bh4
{[%clk 0:02:16.8]} 17... g5 {[%clk 0:02:04.2]} 18. Bg3 {[%clk 0:02:18.1]} 18...
Ng6 {[%clk 0:02:03.3]} 19. c5 {[%clk 0:02:12.7]} 19... Qb4 {[%clk 0:02:00.2]}
20. Nc4 {[%clk 0:02:08.4]} 20... e5 {[%clk 0:01:51.7]} 21. Nd6 {[%clk
0:02:09.2]} 21... Be6 {[%clk 0:01:41.2]} 22. Nxe8 {[%clk 0:02:07.7]} 22... Rxe8
{[%clk 0:01:40.9]} 23. dxe5 {[%clk 0:01:58.8]} 23... Nxe5 {[%clk 0:01:39.5]} 24.
Qxa7 {[%clk 0:01:57.4]} 24... Nc6 {[%clk 0:01:32.9]} 25. Qb6 {[%clk 0:01:55.4]}
25... Qxb6 {[%clk 0:01:32.6]} 26. cxb6 {[%clk 0:01:56.1]} 26... Bxa1 {[%clk
0:01:33.3]} 27. Rxa1 {[%clk 0:01:56.7]} 27... Bxb3 {[%clk 0:01:34.1]} 28. Bb5
{[%clk 0:01:50.7]} 28... Re6 {[%clk 0:01:28.7]} 29. h4 {[%clk 0:01:51.7]} 29...
Ne5 {[%clk 0:01:17.8]} 30. hxg5 {[%clk 0:01:50]} 30... Rxb6 {[%clk 0:01:15.6]}
31. Ra8+ {[%clk 0:01:45]} 31... Kh7 {[%clk 0:01:14.2]} 32. Bxe5 {[%clk
0:01:36.9]} 32... Rxb5 {[%clk 0:01:14.2]} 33. Rh8+ {[%clk 0:01:36.5]} 33... Kg6
{[%clk 0:01:14.4]} 34. Rg8+ {[%clk 0:01:30.1]} 34... Kh7 {[%clk 0:00:51.7]} 35.
Rg7+ {[%clk 0:01:26.7]} 35... Kh8 {[%clk 0:00:49.4]} 36. Bd4 {[%clk 0:01:27.6]}
36... Rb4 {[%clk 0:00:43.5]} 37. gxh6 {[%clk 0:01:26.9]} 37... Be6 {[%clk
0:00:32.6]} 38. Rxf7+ {[%clk 0:01:24]} 38... Rxd4 {[%clk 0:00:32.7]} 39. Rf8+
{[%clk 0:01:24.7]} 39... Kh7 {[%clk 0:00:32.1]} 40. exd4 {[%clk 0:01:25.8]}
40... b5 {[%clk 0:00:33.1]} 41. Rb8 {[%clk 0:01:26]} 41... Bc4 {[%clk
0:00:33.9]} 42. Rb6 {[%clk 0:01:26.9]} 1-0

[Event "*** Titled Tuesday 3|2 Blitz"]
[Site "Chess.com"]
[Date "2015.04.07"]
[Round "1"]
[White "gumersindo"]
[Black "Ar4uha"]
[Result "0-1"]
[WhiteElo "2129"]
[BlackElo "2463"]
[TimeControl "180+2"]
[EndTime "11:07:33 PDT"]
[Termination "Ar4uha won by resignation"]

1. d4 {[%clk 0:03:01]} 1... Nf6 {[%clk 0:03:00.1]} 2. c4 {[%clk 0:03:01]} 2...
e6 {[%clk 0:03:01.3]} 3. Nc3 {[%clk 0:02:57.8]} 3... Bb4 {[%clk 0:02:56.6]} 4.
Qc2 {[%clk 0:02:55.5]} 4... d5 {[%clk 0:02:56.8]} 5. a3 {[%clk 0:02:47.2]} 5...
Bxc3+ {[%clk 0:02:57.6]} 6. Qxc3 {[%clk 0:02:48.8]} 6... c5 {[%clk 0:02:59.3]}
7. dxc5 {[%clk 0:02:47.6]} 7... d4 {[%clk 0:03:00.5]} 8. Qg3 {[%clk 0:02:48.8]}
8... Nc6 {[%clk 0:03:01]} 9. Qxg7 {[%clk 0:02:47.7]} 9... Rg8 {[%clk 0:03:01.6]}
10. Qh6 {[%clk 0:02:48.6]} 10... Rg6 {[%clk 0:03:02.4]} 11. Qh4 {[%clk
0:02:42.4]} 11... e5 {[%clk 0:03:00.5]} 12. Bd2 {[%clk 0:02:37.5]} 12... Be6
{[%clk 0:02:54.9]} 13. e3 {[%clk 0:02:32.8]} 13... a5 {[%clk 0:02:45.8]} 14. Nf3
{[%clk 0:02:28.4]} 14... Qe7 {[%clk 0:02:38]} 15. O-O-O {[%clk 0:01:44]} 15...
Qxc5 {[%clk 0:02:26.7]} 16. exd4 {[%clk 0:01:43.9]} 16... exd4 {[%clk
0:02:25.4]} 17. Re1 {[%clk 0:01:37.3]} 17... O-O-O {[%clk 0:02:19.5]} 18. Kb1
{[%clk 0:01:37.5]} 18... Bf5+ {[%clk 0:01:51.9]} 19. Ka2 {[%clk 0:01:21.4]}
19... a4 {[%clk 0:01:14.5]} 20. Bg5 {[%clk 0:00:59.7]} 20... Rd6 {[%clk
0:01:02.6]} 21. Qf4 {[%clk 0:00:42.5]} 21... Bc2 {[%clk 0:00:55.9]} 22. Ne5
{[%clk 0:00:31.8]} 22... d3 {[%clk 0:00:28.8]} 23. Nxg6 {[%clk 0:00:18.8]} 23...
d2 {[%clk 0:00:22.5]} 24. Bxf6 {[%clk 0:00:09.5]} 24... Bb3+ {[%clk 0:00:20.9]}
0-1

[Event "*** Titled Tuesday 3|2 Blitz"]
[Site "Chess.com"]
[Date "2015.04.07"]
[Round "1"]
[White "Daniel_Fridman"]
[Black "iFrancisco"]
[Result "1-0"]
[WhiteElo "2638"]
[BlackElo "2214"]
[TimeControl "180+2"]
[EndTime "11:08:17 PDT"]
[Termination "Daniel_Fridman won by resignation"]

1. d4 {[%clk 0:03:01.9]} 1... d5 {[%clk 0:03:00.1]} 2. Nf3 {[%clk 0:03:03]} 2...
Nf6 {[%clk 0:03:00.8]} 3. c4 {[%clk 0:03:04.6]} 3... e6 {[%clk 0:03:02.1]} 4. g3
{[%clk 0:03:05.1]} 4... Bb4+ {[%clk 0:03:02.9]} 5. Bd2 {[%clk 0:03:05.5]} 5...
Be7 {[%clk 0:03:03.7]} 6. Bg2 {[%clk 0:03:06.7]} 6... O-O {[%clk 0:03:05.4]} 7.
O-O {[%clk 0:03:07.8]} 7... c6 {[%clk 0:03:07.1]} 8. Qb3 {[%clk 0:03:08.7]} 8...
b6 {[%clk 0:02:58.4]} 9. Rc1 {[%clk 0:03:08.4]} 9... Ba6 {[%clk 0:02:54.2]} 10.
Ne5 {[%clk 0:03:06.9]} 10... Nfd7 {[%clk 0:01:50.7]} 11. cxd5 {[%clk 0:02:56.9]}
11... Nxe5 {[%clk 0:01:50.3]} 12. dxe5 {[%clk 0:02:35.7]} 12... cxd5 {[%clk
0:01:49.9]} 13. Nc3 {[%clk 0:02:35.8]} 13... Nd7 {[%clk 0:01:42.5]} 14. f4
{[%clk 0:02:31.8]} 14... Rc8 {[%clk 0:01:37.9]} 15. Be3 {[%clk 0:02:30.8]} 15...
Bc5 {[%clk 0:01:37.9]} 16. Bxc5 {[%clk 0:02:29.1]} 16... Nxc5 {[%clk 0:01:39.8]}
17. Qb4 {[%clk 0:02:23.3]} 17... d4 {[%clk 0:01:30.9]} 18. Rd1 {[%clk
0:02:22.4]} 18... dxc3 {[%clk 0:01:25.5]} 19. Rxd8 {[%clk 0:02:22.2]} 19...
Rfxd8 {[%clk 0:01:27.4]} 20. Qxc3 {[%clk 0:02:19.7]} 20... Bxe2 {[%clk
0:01:26.4]} 21. Qe3 {[%clk 0:02:20.4]} 21... Bh5 {[%clk 0:01:13.2]} 22. Rc1
{[%clk 0:02:17.8]} 22... a5 {[%clk 0:01:08.2]} 23. b3 {[%clk 0:02:14.8]} 23...
Bg6 {[%clk 0:01:05.9]} 24. Bf1 {[%clk 0:02:12.6]} 24... Rc7 {[%clk 0:00:51.6]}
25. a3 {[%clk 0:02:11.1]} 25... Rcd7 {[%clk 0:00:46.4]} 26. b4 {[%clk 0:02:09]}
26... axb4 {[%clk 0:00:39.9]} 27. axb4 {[%clk 0:02:10.9]} 27... Nd3 {[%clk
0:00:41.3]} 28. Rd1 {[%clk 0:02:07.6]} 28... b5 {[%clk 0:00:25]} 29. Qb6 {[%clk
0:02:08.2]} 29... h6 {[%clk 0:00:19.1]} 30. Qxb5 {[%clk 0:02:08.7]} 30... Rd5
{[%clk 0:00:17.7]} 31. Qb6 {[%clk 0:02:03]} 31... Kh7 {[%clk 0:00:16.5]} 32. b5
{[%clk 0:01:55.5]} 32... R8d7 {[%clk 0:00:17.5]} 33. Qe3 {[%clk 0:01:44.2]}
33... Nxf4 {[%clk 0:00:15.6]} 34. Rxd5 {[%clk 0:01:44.5]} 34... Nxd5 {[%clk
0:00:17.3]} 35. Qc5 {[%clk 0:01:40.8]} 35... Rc7 {[%clk 0:00:18]} 36. Qxc7
{[%clk 0:01:40.6]} 36... Nxc7 {[%clk 0:00:18.6]} 37. b6 {[%clk 0:01:41.6]} 37...
Be4 {[%clk 0:00:14]} 38. bxc7 {[%clk 0:01:41.3]} 38... Bb7 {[%clk 0:00:15.2]}
39. Kf2 {[%clk 0:01:33.4]} 39... Kg8 {[%clk 0:00:15]} 40. Ke3 {[%clk 0:01:34.2]}
40... Kf8 {[%clk 0:00:16.6]} 41. Kd4 {[%clk 0:01:34.1]} 41... Ke7 {[%clk
0:00:17.9]} 42. Bb5 {[%clk 0:01:32.7]} 42... f6 {[%clk 0:00:16.3]} 43. Kc5
{[%clk 0:01:10.5]} 43... Bc8 {[%clk 0:00:14.2]} 44. Kb6 {[%clk 0:01:10.4]} 44...
fxe5 {[%clk 0:00:10.7]} 45. Ka7 {[%clk 0:01:11.3]} 45... e4 {[%clk 0:00:08]} 46.
Kb8 {[%clk 0:01:11.8]} 1-0

[Event "*** Titled Tuesday 3|2 Blitz"]
[Site "Chess.com"]
[Date "2015.04.07"]
[Round "1"]
[White "facu57"]
[Black "Tilicheev_Viacheslav"]
[Result "0-1"]
[WhiteElo "2114"]
[BlackElo "2450"]
[TimeControl "180+2"]
[EndTime "11:08:28 PDT"]
[Termination "Tilicheev_Viacheslav won by resignation"]

1. e4 {[%clk 0:01:48.7]} 1... c5 {[%clk 0:02:58.3]} 2. Nc3 {[%clk 0:01:49.2]}
2... Nc6 {[%clk 0:02:59]} 3. g3 {[%clk 0:01:51.1]} 3... Rb8 {[%clk 0:02:58.7]}
4. Bg2 {[%clk 0:01:53]} 4... b5 {[%clk 0:02:59.7]} 5. Rb1 {[%clk 0:01:54]} 5...
g6 {[%clk 0:03:00.8]} 6. d3 {[%clk 0:01:54.9]} 6... Bg7 {[%clk 0:03:02.2]} 7. f4
{[%clk 0:01:54.6]} 7... d6 {[%clk 0:03:03.4]} 8. Nf3 {[%clk 0:01:54.3]} 8... e6
{[%clk 0:03:04.8]} 9. O-O {[%clk 0:01:55.3]} 9... Nge7 {[%clk 0:03:05.9]} 10.
Ne2 {[%clk 0:01:54.8]} 10... O-O {[%clk 0:03:06.3]} 11. a3 {[%clk 0:01:55.4]}
11... a5 {[%clk 0:03:06.4]} 12. Be3 {[%clk 0:01:55.9]} 12... b4 {[%clk
0:03:07.5]} 13. axb4 {[%clk 0:01:57]} 13... axb4 {[%clk 0:03:09.4]} 14. b3
{[%clk 0:01:58.3]} 14... Bb7 {[%clk 0:03:09.7]} 15. h3 {[%clk 0:01:58.6]} 15...
Qb6 {[%clk 0:03:07.4]} 16. Nd2 {[%clk 0:01:57.5]} 16... d5 {[%clk 0:02:59.3]}
17. g4 {[%clk 0:01:54.6]} 17... Nd4 {[%clk 0:02:52.3]} 18. Nxd4 {[%clk
0:01:44.4]} 18... cxd4 {[%clk 0:02:53.1]} 19. Bf2 {[%clk 0:01:45.2]} 19... dxe4
{[%clk 0:02:52.3]} 20. Bxe4 {[%clk 0:01:41.3]} 20... Bxe4 {[%clk 0:02:51.9]} 21.
Nxe4 {[%clk 0:01:41.2]} 21... Rfc8 {[%clk 0:02:52.1]} 22. Rc1 {[%clk 0:01:36.7]}
22... Nd5 {[%clk 0:02:52.2]} 23. Qd2 {[%clk 0:01:34.2]} 23... Bh6 {[%clk
0:02:50]} 24. Bg3 {[%clk 0:01:34.5]} 24... Ne3 {[%clk 0:02:47.5]} 25. Rf2 {[%clk
0:01:29.3]} 25... Rc6 {[%clk 0:02:46.7]} 26. g5 {[%clk 0:01:07]} 26... Bg7
{[%clk 0:02:46]} 27. f5 {[%clk 0:00:58.3]} 27... exf5 {[%clk 0:02:36.1]} 28.
Bxb8 {[%clk 0:00:58.2]} 28... Qxb8 {[%clk 0:02:37]} 29. Nf6+ {[%clk 0:00:40.2]}
29... Bxf6 {[%clk 0:02:30.4]} 30. gxf6 {[%clk 0:00:42.1]} 30... Qg3+ {[%clk
0:02:29.9]} 31. Kh1 {[%clk 0:00:43.2]} 31... Qxh3+ {[%clk 0:02:31]} 32. Rh2
{[%clk 0:00:43.6]} 32... Qf3+ {[%clk 0:02:31.8]} 33. Kg1 {[%clk 0:00:43.9]}
33... Ng4 {[%clk 0:02:12.6]} 34. Rg2 {[%clk 0:00:38.9]} 34... Qe3+ {[%clk
0:02:10]} 35. Kh1 {[%clk 0:00:39.6]} 35... Rxf6 {[%clk 0:02:02.8]} 36. Re1
{[%clk 0:00:38.2]} 36... Qh3+ {[%clk 0:01:41.5]} 37. Kg1 {[%clk 0:00:37.9]}
37... Ne3 {[%clk 0:01:43.2]} 38. Rh2 {[%clk 0:00:35.8]} 38... Qg3+ {[%clk
0:01:43.1]} 39. Kh1 {[%clk 0:00:35.7]} 39... f4 {[%clk 0:01:44.5]} 40. Qf2
{[%clk 0:00:23.4]} 40... Rc6 {[%clk 0:01:19.8]} 41. Re2 {[%clk 0:00:24.4]} 41...
Ra6 {[%clk 0:01:05.2]} 42. Qxg3 {[%clk 0:00:11.8]} 42... fxg3 {[%clk 0:01:04.7]}
43. Rh3 {[%clk 0:00:12.9]} 43... Ra1+ {[%clk 0:01:03.9]} 0-1